[Event "Titled Tuesday Blitz February 07 Late 2023"]
[White "Salimova, Nurgyul"]
[Black "Ismagilov, Damir"]
[WhiteFideId "2915138"]
[BlackFideId "34199982"]
[WhiteElo "2391"]
[BlackElo "2156"]
[Result "0-1"]
[Round "04"]
[TimeControl "180+2"]
[Date "2023.02.07"]
[WhiteClock "0:00:03"]
[BlackClock "0:00:14"]

1. d4 {[%clk 0:03:00]}  Nf6 {[%clk 0:02:58]} 2. Nf3 {[%clk 0:03:00]}  b6 {[%clk 0:02:58]} 3. g3 {[%clk 0:02:58]}  e6 {[%clk 0:02:58]} 4. Bg2 {[%clk 0:02:59]}  d5 {[%clk 0:02:59]} 5. O-O {[%clk 0:02:59]}  Be7 {[%clk 0:02:59]} 6. c4 {[%clk 0:02:55]}  c6 {[%clk 0:02:59]} 7. cxd5 {[%clk 0:02:45]}  cxd5 {[%clk 0:03:00]} 8. Nc3 {[%clk 0:02:46]}  O-O {[%clk 0:03:00]} 9. Bf4 {[%clk 0:02:46]}  Bb7 {[%clk 0:03:00]} 10. Rc1 {[%clk 0:02:46]}  Nc6 {[%clk 0:03:01]} 11. Qa4 {[%clk 0:02:46]}  a6 {[%clk 0:02:56]} 12. Rfd1 {[%clk 0:02:39]}  b5 {[%clk 0:02:55]} 13. Qc2 {[%clk 0:02:38]}  Qb6 {[%clk 0:02:54]} 14. e3 {[%clk 0:02:31]}  Rac8 {[%clk 0:02:54]} 15. Qb1 {[%clk 0:02:30]}  h6 {[%clk 0:02:52]} 16. Bf1 {[%clk 0:02:26]}  Na5 {[%clk 0:02:31]} 17. Bd3 {[%clk 0:02:16]}  Nc4 {[%clk 0:02:25]} 18. h4 {[%clk 0:02:07]}  Bd6 {[%clk 0:02:02]} 19. Kg2 {[%clk 0:01:55]}  Rc7 {[%clk 0:01:43]} 20. b3 {[%clk 0:01:44]}  Bxf4 {[%clk 0:01:36]} 21. gxf4 {[%clk 0:01:44]}  Nd6 {[%clk 0:01:33]} 22. Ne5 {[%clk 0:01:43]}  Rfc8 {[%clk 0:01:32]} 23. Ne2 {[%clk 0:01:43]}  Nde4 {[%clk 0:01:27]} 24. Rxc7 {[%clk 0:01:34]}  Rxc7 {[%clk 0:01:27]} 25. Rc1 {[%clk 0:01:33]}  Qa5 {[%clk 0:01:05]} 26. b4 {[%clk 0:01:18]}  Qb6 {[%clk 0:01:05]} 27. Qb2 {[%clk 0:01:00]}  Nd6 {[%clk 0:01:01]} 28. Rc5 {[%clk 0:00:58]}  Nfe4 {[%clk 0:00:59]} 29. f3 {[%clk 0:00:51]}  Nf6 {[%clk 0:00:42]} 30. Kf2 {[%clk 0:00:43]}  Nc4 {[%clk 0:00:42]} 31. Qc1 {[%clk 0:00:39]}  Nd7 {[%clk 0:00:36]} 32. Nxd7 {[%clk 0:00:32]}  Rxd7 {[%clk 0:00:37]} 33. h5 {[%clk 0:00:29]}  Qd8 {[%clk 0:00:36]} 34. Qh1 {[%clk 0:00:25]}  Rc7 {[%clk 0:00:35]} 35. Ng3 {[%clk 0:00:22]}  Rxc5 {[%clk 0:00:34]} 36. bxc5 {[%clk 0:00:13]}  Qa5 {[%clk 0:00:34]} 37. Qd1 {[%clk 0:00:08]}  Qxa2+ {[%clk 0:00:32]} 38. Ne2 {[%clk 0:00:06]}  Nb2 {[%clk 0:00:26]} 39. Qc2 {[%clk 0:00:06]}  Nxd3+ {[%clk 0:00:25]} 40. Qxd3 {[%clk 0:00:07]}  Qc4 {[%clk 0:00:24]} 41. Qd2 {[%clk 0:00:06]}  b4 {[%clk 0:00:24]} 42. Nc1 {[%clk 0:00:05]}  Bc6 {[%clk 0:00:22]} 43. Nd3 {[%clk 0:00:05]}  a5 {[%clk 0:00:22]} 44. Ne5 {[%clk 0:00:05]}  Qb5 {[%clk 0:00:22]} 45. f5 {[%clk 0:00:02]}  b3 {[%clk 0:00:20]} 46. fxe6 {[%clk 0:00:02]}  fxe6 {[%clk 0:00:19]} 47. Qc1 {[%clk 0:00:02]}  b2 {[%clk 0:00:19]} 48. Qb1 {[%clk 0:00:03]}  Be8 {[%clk 0:00:18]} 49. f4 {[%clk 0:00:01]}  a4 {[%clk 0:00:19]} 50. c6 {[%clk 0:00:02]}  Bxc6 {[%clk 0:00:18]} 51. Qg6 {[%clk 0:00:02]}  Be8 {[%clk 0:00:16]} 52. Qxe6+ {[%clk 0:00:02]}  Kh7 {[%clk 0:00:16]} 53. Qf5+ {[%clk 0:00:02]}  Kh8 {[%clk 0:00:16]} 54. Qf8+ {[%clk 0:00:03]}  Kh7 {[%clk 0:00:16]} 55. Qf5+ {[%clk 0:00:03]}  Kg8 {[%clk 0:00:17]} 56. Qe6+ {[%clk 0:00:04]}  Kh8 {[%clk 0:00:16]} 57. Ng6+ {[%clk 0:00:02]}  Bxg6 {[%clk 0:00:14]} 58. hxg6 {[%clk 0:00:03]}  Qb8 {[%clk 0:00:14]} 0-1


[Site "https://www.chess.com"]

[Event "Titled Tuesday Blitz February 07 Late 2023"]
[White "Brilej, Jaka"]
[Black "Wieczorek, Oskar"]
[WhiteFideId "14618818"]
[BlackFideId "1133950"]
[WhiteElo "2321"]
[BlackElo "2512"]
[Result "1-0"]
[Round "04"]
[TimeControl "180+2"]
[Date "2023.02.07"]
[WhiteClock "0:01:43"]
[BlackClock "0:00:58"]

1. e4 {[%clk 0:03:00]}  c5 {[%clk 0:02:53]} 2. Nf3 {[%clk 0:03:00]}  e6 {[%clk 0:02:53]} 3. Nc3 {[%clk 0:03:00]}  d6 {[%clk 0:02:51]} 4. d4 {[%clk 0:03:00]}  cxd4 {[%clk 0:02:52]} 5. Nxd4 {[%clk 0:03:01]}  Nf6 {[%clk 0:02:53]} 6. f3 {[%clk 0:03:00]}  a6 {[%clk 0:02:52]} 7. Be3 {[%clk 0:03:00]}  b5 {[%clk 0:02:51]} 8. Qd2 {[%clk 0:03:01]}  Nbd7 {[%clk 0:02:48]} 9. g4 {[%clk 0:03:01]}  h6 {[%clk 0:02:48]} 10. h4 {[%clk 0:02:57]}  b4 {[%clk 0:02:48]} 11. Nce2 {[%clk 0:02:56]}  d5 {[%clk 0:02:49]} 12. Rg1 {[%clk 0:02:40]}  Ne5 {[%clk 0:02:17]} 13. g5 {[%clk 0:02:38]}  hxg5 {[%clk 0:02:17]} 14. hxg5 {[%clk 0:02:38]}  Nc4 {[%clk 0:02:17]} 15. Qc1 {[%clk 0:02:37]}  Nd7 {[%clk 0:01:58]} 16. exd5 {[%clk 0:02:24]}  exd5 {[%clk 0:01:56]} 17. Nf4 {[%clk 0:02:22]}  Nde5 {[%clk 0:01:52]} 18. b3 {[%clk 0:02:18]}  Bc5 {[%clk 0:01:42]} 19. bxc4 {[%clk 0:01:50]}  Bxd4 {[%clk 0:01:42]} 20. Bxd4 {[%clk 0:01:50]}  Nxf3+ {[%clk 0:01:43]} 21. Kf2 {[%clk 0:01:51]}  Nxd4 {[%clk 0:01:44]} 22. Qe3+ {[%clk 0:01:51]}  Ne6 {[%clk 0:01:34]} 23. cxd5 {[%clk 0:01:50]}  Rh2+ {[%clk 0:01:11]} 24. Rg2 {[%clk 0:01:43]}  Rxg2+ {[%clk 0:00:58]} 25. Bxg2 {[%clk 0:01:43]} 1-0


[Site "https://www.chess.com"]

[Event "Titled Tuesday Blitz February 07 Late 2023"]
[White "Starozhilov, Leonid"]
[Black "Ozates, Tuna"]
[WhiteFideId "14106752"]
[BlackFideId "6354521"]
[WhiteElo "2313"]
[BlackElo "2251"]
[Result "0-1"]
[Round "04"]
[TimeControl "180+2"]
[Date "2023.02.07"]
[WhiteClock "0:00:01"]
[BlackClock "0:00:07"]

1. e4 {[%clk 0:03:00]}  c5 {[%clk 0:02:59]} 2. Nf3 {[%clk 0:03:00]}  Nc6 {[%clk 0:02:59]} 3. Bb5 {[%clk 0:03:01]}  g6 {[%clk 0:02:59]} 4. O-O {[%clk 0:03:00]}  Bg7 {[%clk 0:02:59]} 5. Nc3 {[%clk 0:03:00]}  d6 {[%clk 0:02:58]} 6. Re1 {[%clk 0:02:49]}  e5 {[%clk 0:02:58]} 7. Nd5 {[%clk 0:02:48]}  Ne7 {[%clk 0:02:57]} 8. d4 {[%clk 0:02:41]}  cxd4 {[%clk 0:02:55]} 9. Bg5 {[%clk 0:02:40]}  f6 {[%clk 0:02:12]} 10. Nxf6+ {[%clk 0:02:32]}  Kf7 {[%clk 0:02:11]} 11. Nd5 {[%clk 0:02:27]}  h6 {[%clk 0:02:05]} 12. Bxc6 {[%clk 0:01:47]}  hxg5 {[%clk 0:01:59]} 13. Nxg5+ {[%clk 0:01:48]}  Kg8 {[%clk 0:01:50]} 14. Nxe7+ {[%clk 0:01:14]}  Qxe7 {[%clk 0:01:50]} 15. Bd5+ {[%clk 0:01:14]}  Kf8 {[%clk 0:01:51]} 16. Qf3+ {[%clk 0:01:05]}  Ke8 {[%clk 0:01:51]} 17. c3 {[%clk 0:00:58]}  Rf8 {[%clk 0:01:43]} 18. Qg3 {[%clk 0:00:57]}  Bf6 {[%clk 0:01:21]} 19. Nf3 {[%clk 0:00:48]}  g5 {[%clk 0:01:21]} 20. cxd4 {[%clk 0:00:41]}  g4 {[%clk 0:01:21]} 21. dxe5 {[%clk 0:00:38]}  dxe5 {[%clk 0:01:22]} 22. Rad1 {[%clk 0:00:20]}  Bd7 {[%clk 0:01:18]} 23. Bxb7 {[%clk 0:00:14]}  Rb8 {[%clk 0:01:18]} 24. Ba6 {[%clk 0:00:12]}  gxf3 {[%clk 0:01:10]} 25. Bc4 {[%clk 0:00:12]}  fxg2 {[%clk 0:00:59]} 26. Qg6+ {[%clk 0:00:12]}  Kd8 {[%clk 0:01:00]} 27. Qg4 {[%clk 0:00:08]}  Kc7 {[%clk 0:00:42]} 28. Qe2 {[%clk 0:00:08]}  Bh4 {[%clk 0:00:39]} 29. Rc1 {[%clk 0:00:04]}  Bxf2+ {[%clk 0:00:31]} 30. Kxg2 {[%clk 0:00:05]}  Qg5+ {[%clk 0:00:24]} 31. Kh1 {[%clk 0:00:04]}  Bxe1 {[%clk 0:00:25]} 32. Qxe1 {[%clk 0:00:04]}  Kd8 {[%clk 0:00:08]} 33. Bd5 {[%clk 0:00:01]}  Qg4 {[%clk 0:00:07]} 0-1


[Site "https://www.chess.com"]

[Event "Titled Tuesday Blitz February 07 Late 2023"]
[White "Tan, Zhongyi"]
[Black "Schekachikhin, Maksim"]
[WhiteFideId "8603642"]
[BlackFideId "24177830"]
[WhiteElo "2517"]
[BlackElo "2371"]
[Result "1-0"]
[Round "04"]
[TimeControl "180+2"]
[Date "2023.02.07"]
[WhiteClock "0:01:22"]
[BlackClock "0:00:17"]

1. d4 {[%clk 0:03:00]}  Nf6 {[%clk 0:02:56]} 2. c4 {[%clk 0:03:00]}  b6 {[%clk 0:02:55]} 3. f3 {[%clk 0:02:53]}  Nc6 {[%clk 0:02:41]} 4. Nc3 {[%clk 0:02:48]}  Bb7 {[%clk 0:02:24]} 5. e4 {[%clk 0:02:39]}  e5 {[%clk 0:02:23]} 6. dxe5 {[%clk 0:02:37]}  Nxe5 {[%clk 0:02:23]} 7. Be3 {[%clk 0:02:35]}  Bc5 {[%clk 0:02:19]} 8. Qd2 {[%clk 0:02:29]}  O-O {[%clk 0:02:17]} 9. Nh3 {[%clk 0:02:26]}  Re8 {[%clk 0:02:14]} 10. O-O-O {[%clk 0:02:25]}  Qe7 {[%clk 0:01:58]} 11. Nf4 {[%clk 0:02:21]}  Rad8 {[%clk 0:01:48]} 12. Kb1 {[%clk 0:02:13]}  Bxe3 {[%clk 0:01:43]} 13. Qxe3 {[%clk 0:02:13]}  a6 {[%clk 0:01:43]} 14. g4 {[%clk 0:02:04]}  Nexg4 {[%clk 0:01:15]} 15. fxg4 {[%clk 0:02:03]}  Nxe4 {[%clk 0:01:10]} 16. Rg1 {[%clk 0:02:00]}  Qg5 {[%clk 0:00:46]} 17. Ncd5 {[%clk 0:01:31]}  Bxd5 {[%clk 0:00:19]} 18. Rxd5 {[%clk 0:01:31]}  Nc3+ {[%clk 0:00:17]} 19. bxc3 {[%clk 0:01:22]} 1-0


[Site "https://www.chess.com"]

[Event "Titled Tuesday Blitz February 07 Late 2023"]
[White "Mgeladze, Tamaz"]
[Black "Seletsky, Grigory"]
[WhiteFideId "13601202"]
[BlackFideId "14112191"]
[WhiteElo "2388"]
[BlackElo "2259"]
[Result "1-0"]
[Round "04"]
[TimeControl "180+2"]
[Date "2023.02.07"]
[WhiteClock "0:01:51"]
[BlackClock "0:01:16"]

1. c4 {[%clk 0:03:00]}  c5 {[%clk 0:02:53]} 2. g3 {[%clk 0:03:00]}  Nc6 {[%clk 0:02:52]} 3. Bg2 {[%clk 0:03:01]}  Nf6 {[%clk 0:02:53]} 4. Nc3 {[%clk 0:03:01]}  g6 {[%clk 0:02:52]} 5. Nf3 {[%clk 0:03:02]}  Bg7 {[%clk 0:02:52]} 6. O-O {[%clk 0:03:02]}  O-O {[%clk 0:02:53]} 7. d3 {[%clk 0:03:03]}  d6 {[%clk 0:02:53]} 8. a3 {[%clk 0:03:03]}  Bd7 {[%clk 0:02:54]} 9. Rb1 {[%clk 0:03:04]}  a5 {[%clk 0:02:54]} 10. Bg5 {[%clk 0:03:02]}  h6 {[%clk 0:02:51]} 11. Bd2 {[%clk 0:03:02]}  Kh7 {[%clk 0:02:49]} 12. Ne1 {[%clk 0:03:01]}  Rb8 {[%clk 0:02:47]} 13. Nc2 {[%clk 0:03:00]}  b6 {[%clk 0:02:42]} 14. b4 {[%clk 0:03:00]}  axb4 {[%clk 0:02:41]} 15. axb4 {[%clk 0:03:01]}  Ne8 {[%clk 0:02:37]} 16. b5 {[%clk 0:02:57]}  Nd4 {[%clk 0:02:36]} 17. Nxd4 {[%clk 0:02:57]}  Bxd4 {[%clk 0:02:36]} 18. Nd5 {[%clk 0:02:48]}  e6 {[%clk 0:02:35]} 19. Nf4 {[%clk 0:02:42]}  Bg7 {[%clk 0:02:35]} 20. Qc2 {[%clk 0:02:39]}  Nc7 {[%clk 0:02:29]} 21. Bc3 {[%clk 0:02:38]}  e5 {[%clk 0:02:28]} 22. Nd5 {[%clk 0:02:34]}  Nxd5 {[%clk 0:02:22]} 23. Bxd5 {[%clk 0:02:35]}  Bh3 {[%clk 0:02:21]} 24. Rfe1 {[%clk 0:02:32]}  f5 {[%clk 0:02:22]} 25. Ra1 {[%clk 0:02:29]}  f4 {[%clk 0:02:13]} 26. Ra7 {[%clk 0:02:20]}  Qf6 {[%clk 0:02:13]} 27. f3 {[%clk 0:02:15]}  fxg3 {[%clk 0:01:58]} 28. hxg3 {[%clk 0:02:16]}  Qg5 {[%clk 0:01:58]} 29. Kf2 {[%clk 0:02:17]}  h5 {[%clk 0:01:56]} 30. Qd2 {[%clk 0:02:12]}  Qf6 {[%clk 0:01:41]} 31. Rh1 {[%clk 0:02:10]}  Be6 {[%clk 0:01:38]} 32. Be4 {[%clk 0:02:10]}  Bf5 {[%clk 0:01:34]} 33. Qe3 {[%clk 0:02:06]}  Bxe4 {[%clk 0:01:32]} 34. Qxe4 {[%clk 0:02:07]}  Rf7 {[%clk 0:01:21]} 35. Rxh5+ {[%clk 0:02:04]}  Kg8 {[%clk 0:01:21]} 36. Rxf7 {[%clk 0:02:02]}  Qxf7 {[%clk 0:01:22]} 37. Rg5 {[%clk 0:01:56]}  Kh7 {[%clk 0:01:22]} 38. Bd2 {[%clk 0:01:54]}  Bh6 {[%clk 0:01:19]} 39. Rh5 {[%clk 0:01:54]}  Qf5 {[%clk 0:01:15]} 40. Rxh6+ {[%clk 0:01:50]}  Kg7 {[%clk 0:01:15]} 41. Qxf5 {[%clk 0:01:50]}  gxf5 {[%clk 0:01:16]} 42. Rxd6 {[%clk 0:01:51]} 1-0


[Site "https://www.chess.com"]

[Event "Titled Tuesday Blitz February 07 Late 2023"]
[White "Sokolovsky, Yahli"]
[Black "Dragomirescu, Angela"]
[WhiteFideId "2820242"]
[BlackFideId "1209914"]
[WhiteElo "2461"]
[BlackElo "2130"]
[Result "1-0"]
[Round "04"]
[TimeControl "180+2"]
[Date "2023.02.07"]
[WhiteClock "0:00:17"]
[BlackClock "0:00:14"]

1. b3 {[%clk 0:03:00]}  e5 {[%clk 0:02:59]} 2. Bb2 {[%clk 0:02:59]}  Nc6 {[%clk 0:03:00]} 3. e3 {[%clk 0:02:57]}  g6 {[%clk 0:03:00]} 4. d4 {[%clk 0:02:52]}  Bg7 {[%clk 0:02:59]} 5. d5 {[%clk 0:02:50]}  Nb8 {[%clk 0:03:00]} 6. c4 {[%clk 0:02:46]}  d6 {[%clk 0:02:59]} 7. Nc3 {[%clk 0:02:40]}  Nh6 {[%clk 0:02:52]} 8. Bd3 {[%clk 0:02:34]}  f5 {[%clk 0:02:51]} 9. e4 {[%clk 0:02:34]}  f4 {[%clk 0:02:49]} 10. Qc2 {[%clk 0:02:25]}  a6 {[%clk 0:02:40]} 11. O-O-O {[%clk 0:02:24]}  Nf7 {[%clk 0:02:37]} 12. Kb1 {[%clk 0:02:19]}  O-O {[%clk 0:02:36]} 13. h4 {[%clk 0:02:10]}  h6 {[%clk 0:02:26]} 14. Nf3 {[%clk 0:01:47]}  Bg4 {[%clk 0:02:25]} 15. Rdg1 {[%clk 0:01:47]}  Qe7 {[%clk 0:01:50]} 16. Nh2 {[%clk 0:01:44]}  Bd7 {[%clk 0:01:47]} 17. g3 {[%clk 0:01:42]}  fxg3 {[%clk 0:01:22]} 18. fxg3 {[%clk 0:01:39]}  b5 {[%clk 0:01:18]} 19. h5 {[%clk 0:00:57]}  bxc4 {[%clk 0:01:12]} 20. Bxc4 {[%clk 0:00:54]}  g5 {[%clk 0:01:12]} 21. g4 {[%clk 0:00:54]}  a5 {[%clk 0:01:06]} 22. Nf1 {[%clk 0:00:54]}  Na6 {[%clk 0:01:04]} 23. Bxa6 {[%clk 0:00:51]}  Rxa6 {[%clk 0:01:04]} 24. Ne3 {[%clk 0:00:49]}  a4 {[%clk 0:01:04]} 25. Nxa4 {[%clk 0:00:41]}  Bxa4 {[%clk 0:01:04]} 26. bxa4 {[%clk 0:00:39]}  Rb8 {[%clk 0:01:03]} 27. Nf5 {[%clk 0:00:36]}  Qe8 {[%clk 0:01:02]} 28. Rg3 {[%clk 0:00:34]}  Rab6 {[%clk 0:00:58]} 29. Rb3 {[%clk 0:00:34]}  Qxa4 {[%clk 0:00:59]} 30. Rxb6 {[%clk 0:00:31]}  Qxc2+ {[%clk 0:01:00]} 31. Kxc2 {[%clk 0:00:31]}  Rxb6 {[%clk 0:00:49]} 32. Bc3 {[%clk 0:00:32]}  Bf8 {[%clk 0:00:47]} 33. a4 {[%clk 0:00:31]}  Nd8 {[%clk 0:00:47]} 34. a5 {[%clk 0:00:31]}  Ra6 {[%clk 0:00:47]} 35. Rb1 {[%clk 0:00:31]}  Kf7 {[%clk 0:00:46]} 36. Rb8 {[%clk 0:00:31]}  Ke8 {[%clk 0:00:47]} 37. Kd3 {[%clk 0:00:28]}  Kd7 {[%clk 0:00:25]} 38. Kc4 {[%clk 0:00:27]}  c6 {[%clk 0:00:25]} 39. Bb4 {[%clk 0:00:25]}  Kc7 {[%clk 0:00:21]} 40. Rb6 {[%clk 0:00:19]}  Rxb6 {[%clk 0:00:19]} 41. axb6+ {[%clk 0:00:20]}  Kxb6 {[%clk 0:00:19]} 42. Bxd6 {[%clk 0:00:15]}  Bxd6 {[%clk 0:00:18]} 43. Nxd6 {[%clk 0:00:16]}  cxd5+ {[%clk 0:00:19]} 44. Kxd5 {[%clk 0:00:16]}  Kc7 {[%clk 0:00:15]} 45. Nf5 {[%clk 0:00:17]}  Nf7 {[%clk 0:00:14]} 46. Ke6 {[%clk 0:00:17]}  Nd6 {[%clk 0:00:14]} 47. Nxd6 {[%clk 0:00:17]} 1-0


[Site "https://www.chess.com"]

[Event "Titled Tuesday Blitz February 07 Late 2023"]
[White "tuschessCM1"]
[Black "Jimenez Almeida, Luis David"]
[BlackFideId "22242244"]
[WhiteElo "2670"]
[BlackElo "2242"]
[Result "1-0"]
[Round "04"]
[TimeControl "180+2"]
[Date "2023.02.07"]
[WhiteClock "0:00:20"]
[BlackClock "0:00:01"]

1. c4 {[%clk 0:03:00]}  g6 {[%clk 0:02:58]} 2. Nc3 {[%clk 0:02:55]}  Bg7 {[%clk 0:02:58]} 3. e4 {[%clk 0:02:54]}  c5 {[%clk 0:02:58]} 4. g3 {[%clk 0:02:51]}  Nc6 {[%clk 0:02:58]} 5. Bg2 {[%clk 0:02:47]}  d6 {[%clk 0:02:58]} 6. Nge2 {[%clk 0:02:46]}  Nd4 {[%clk 0:02:58]} 7. d3 {[%clk 0:02:44]}  e6 {[%clk 0:02:57]} 8. O-O {[%clk 0:02:42]}  Ne7 {[%clk 0:02:57]} 9. h3 {[%clk 0:02:40]}  O-O {[%clk 0:02:57]} 10. Kh2 {[%clk 0:02:41]}  a6 {[%clk 0:02:53]} 11. Rb1 {[%clk 0:02:38]}  Rb8 {[%clk 0:02:44]} 12. Nxd4 {[%clk 0:01:54]}  cxd4 {[%clk 0:02:42]} 13. Ne2 {[%clk 0:01:54]}  b5 {[%clk 0:02:41]} 14. b3 {[%clk 0:01:54]}  Bb7 {[%clk 0:02:22]} 15. f4 {[%clk 0:01:52]}  f5 {[%clk 0:02:20]} 16. g4 {[%clk 0:01:46]}  Qb6 {[%clk 0:02:11]} 17. Ng3 {[%clk 0:01:44]}  fxe4 {[%clk 0:02:03]} 18. Nxe4 {[%clk 0:01:35]}  d5 {[%clk 0:02:00]} 19. c5 {[%clk 0:01:28]}  Qc7 {[%clk 0:01:59]} 20. Ng5 {[%clk 0:01:28]}  Bc8 {[%clk 0:01:53]} 21. b4 {[%clk 0:01:27]}  h6 {[%clk 0:01:25]} 22. Nf3 {[%clk 0:01:25]}  g5 {[%clk 0:01:23]} 23. Bb2 {[%clk 0:01:07]}  Ng6 {[%clk 0:00:57]} 24. Kh1 {[%clk 0:01:06]}  Rxf4 {[%clk 0:00:55]} 25. Qe2 {[%clk 0:01:01]}  Bd7 {[%clk 0:00:54]} 26. Rbe1 {[%clk 0:00:59]}  Rbf8 {[%clk 0:00:53]} 27. Nd2 {[%clk 0:00:39]}  Rxf1+ {[%clk 0:00:51]} 28. Rxf1 {[%clk 0:00:39]}  Rxf1+ {[%clk 0:00:50]} 29. Qxf1 {[%clk 0:00:40]}  Qf4 {[%clk 0:00:47]} 30. Nb3 {[%clk 0:00:36]}  Be5 {[%clk 0:00:35]} 31. Qxf4 {[%clk 0:00:33]}  Nxf4 {[%clk 0:00:36]} 32. Bf1 {[%clk 0:00:28]}  Bf6 {[%clk 0:00:26]} 33. Bxd4 {[%clk 0:00:24]}  Kf7 {[%clk 0:00:24]} 34. Kg1 {[%clk 0:00:20]}  e5 {[%clk 0:00:20]} 35. Bb2 {[%clk 0:00:19]}  d4 {[%clk 0:00:16]} 36. Bc1 {[%clk 0:00:19]}  Nd5 {[%clk 0:00:15]} 37. Bd2 {[%clk 0:00:19]}  Be6 {[%clk 0:00:12]} 38. c6 {[%clk 0:00:18]}  Ke7 {[%clk 0:00:12]} 39. Nc5 {[%clk 0:00:18]}  Bc8 {[%clk 0:00:11]} 40. Bg2 {[%clk 0:00:17]}  Nc7 {[%clk 0:00:06]} 41. Kf2 {[%clk 0:00:16]}  Ne6 {[%clk 0:00:06]} 42. Ne4 {[%clk 0:00:16]}  Bg7 {[%clk 0:00:05]} 43. Ng3 {[%clk 0:00:15]}  Nc7 {[%clk 0:00:04]} 44. Be4 {[%clk 0:00:14]}  Kd6 {[%clk 0:00:03]} 45. Bf5 {[%clk 0:00:12]}  Bxf5 {[%clk 0:00:01]} 46. Nxf5+ {[%clk 0:00:13]}  Kxc6 {[%clk 0:00:01]} 47. Nxg7 {[%clk 0:00:14]}  Nd5 {[%clk 0:00:01]} 48. Nf5 {[%clk 0:00:15]}  Nc3 {[%clk 0:00:01]} 49. a3 {[%clk 0:00:14]}  Nb1 {[%clk 0:00:01]} 50. Bc1 {[%clk 0:00:14]}  Kd5 {[%clk 0:00:01]} 51. Nxh6 {[%clk 0:00:15]}  e4 {[%clk 0:00:02]} 52. dxe4+ {[%clk 0:00:15]}  Kxe4 {[%clk 0:00:02]} 53. Nf7 {[%clk 0:00:16]}  Kd3 {[%clk 0:00:03]} 54. Nxg5 {[%clk 0:00:17]}  Kc2 {[%clk 0:00:03]} 55. Bf4 {[%clk 0:00:18]}  d3 {[%clk 0:00:04]} 56. Nf3 {[%clk 0:00:17]}  Nc3 {[%clk 0:00:04]} 57. g5 {[%clk 0:00:17]}  Ne4+ {[%clk 0:00:04]} 58. Kg2 {[%clk 0:00:17]}  Kd1 {[%clk 0:00:03]} 59. g6 {[%clk 0:00:17]}  Ke2 {[%clk 0:00:03]} 60. Nd4+ {[%clk 0:00:18]}  Ke1 {[%clk 0:00:03]} 61. g7 {[%clk 0:00:19]}  Nf6 {[%clk 0:00:03]} 62. Nf3+ {[%clk 0:00:19]}  Ke2 {[%clk 0:00:03]} 63. Be5 {[%clk 0:00:20]}  d2 {[%clk 0:00:01]} 64. Nxd2 {[%clk 0:00:20]} 1-0


[Site "https://www.chess.com"]

[Event "Titled Tuesday Blitz February 07 Late 2023"]
[White "Bochnicka, Vladimir"]
[Black "Kalogeris, Ioannis"]
[WhiteFideId "14943450"]
[BlackFideId "4239563"]
[WhiteElo "2327"]
[BlackElo "2423"]
[Result "0-1"]
[Round "04"]
[TimeControl "180+2"]
[Date "2023.02.07"]
[WhiteClock "0:00:10"]
[BlackClock "0:00:18"]

1. e4 {[%clk 0:02:59]}  e5 {[%clk 0:03:00]} 2. Nf3 {[%clk 0:02:59]}  Nc6 {[%clk 0:02:59]} 3. Bc4 {[%clk 0:03:00]}  Bc5 {[%clk 0:03:00]} 4. c3 {[%clk 0:03:00]}  Nf6 {[%clk 0:03:00]} 5. d3 {[%clk 0:03:00]}  O-O {[%clk 0:03:00]} 6. Nbd2 {[%clk 0:03:00]}  d6 {[%clk 0:03:00]} 7. Nf1 {[%clk 0:02:59]}  a6 {[%clk 0:02:55]} 8. Bb3 {[%clk 0:02:59]}  Ba7 {[%clk 0:02:53]} 9. Ng3 {[%clk 0:02:58]}  h6 {[%clk 0:02:52]} 10. O-O {[%clk 0:02:58]}  Ne7 {[%clk 0:02:49]} 11. h3 {[%clk 0:02:51]}  Ng6 {[%clk 0:02:49]} 12. Re1 {[%clk 0:02:50]}  c6 {[%clk 0:02:43]} 13. d4 {[%clk 0:02:50]}  Qc7 {[%clk 0:02:40]} 14. Bc2 {[%clk 0:02:45]}  b5 {[%clk 0:02:36]} 15. Be3 {[%clk 0:02:44]}  c5 {[%clk 0:02:33]} 16. dxe5 {[%clk 0:02:36]}  dxe5 {[%clk 0:02:32]} 17. Qc1 {[%clk 0:02:19]}  Nf4 {[%clk 0:02:15]} 18. Nf5 {[%clk 0:02:06]}  c4 {[%clk 0:01:59]} 19. Bxf4 {[%clk 0:02:02]}  exf4 {[%clk 0:01:58]} 20. e5 {[%clk 0:02:02]}  Nd5 {[%clk 0:01:40]} 21. N3d4 {[%clk 0:01:33]}  Bxf5 {[%clk 0:01:29]} 22. Nxf5 {[%clk 0:01:30]}  Rae8 {[%clk 0:01:26]} 23. Be4 {[%clk 0:01:21]}  Rxe5 {[%clk 0:01:17]} 24. Bxd5 {[%clk 0:01:20]}  Rxf5 {[%clk 0:01:15]} 25. Bf3 {[%clk 0:01:20]}  Rd8 {[%clk 0:01:03]} 26. Qc2 {[%clk 0:01:20]}  g6 {[%clk 0:00:56]} 27. Re2 {[%clk 0:01:15]}  Re5 {[%clk 0:00:56]} 28. Rae1 {[%clk 0:01:15]}  Rxe2 {[%clk 0:00:55]} 29. Qxe2 {[%clk 0:01:15]}  Qd6 {[%clk 0:00:54]} 30. Rd1 {[%clk 0:01:11]}  Qc7 {[%clk 0:00:52]} 31. Rxd8+ {[%clk 0:01:01]}  Qxd8 {[%clk 0:00:52]} 32. Qe5 {[%clk 0:00:56]}  Qb6 {[%clk 0:00:51]} 33. Qe2 {[%clk 0:00:44]}  Qc5 {[%clk 0:00:50]} 34. Bb7 {[%clk 0:00:42]}  a5 {[%clk 0:00:50]} 35. Qf3 {[%clk 0:00:42]}  Qe5 {[%clk 0:00:46]} 36. Qe4 {[%clk 0:00:40]}  Qd6 {[%clk 0:00:43]} 37. Bd5 {[%clk 0:00:39]}  Kg7 {[%clk 0:00:40]} 38. Kf1 {[%clk 0:00:34]}  Bc5 {[%clk 0:00:40]} 39. Ke2 {[%clk 0:00:34]}  Qf6 {[%clk 0:00:37]} 40. Kf3 {[%clk 0:00:33]}  Qh4 {[%clk 0:00:35]} 41. Qe5+ {[%clk 0:00:29]}  Kh7 {[%clk 0:00:35]} 42. g3 {[%clk 0:00:20]}  fxg3 {[%clk 0:00:33]} 43. fxg3 {[%clk 0:00:20]}  Qxh3 {[%clk 0:00:33]} 44. Bxf7 {[%clk 0:00:14]}  Qf1+ {[%clk 0:00:34]} 45. Ke4 {[%clk 0:00:14]}  Qg2+ {[%clk 0:00:23]} 46. Kf4 {[%clk 0:00:13]}  Qf2+ {[%clk 0:00:21]} 47. Ke4 {[%clk 0:00:12]}  Qxf7 {[%clk 0:00:17]} 48. Qxc5 {[%clk 0:00:12]}  Qb7+ {[%clk 0:00:18]} 49. Kf4 {[%clk 0:00:12]}  Qb8+ {[%clk 0:00:18]} 50. Kg4 {[%clk 0:00:12]}  Qb7 {[%clk 0:00:18]} 51. Qe5 {[%clk 0:00:11]}  h5+ {[%clk 0:00:19]} 52. Kh3 {[%clk 0:00:11]}  b4 {[%clk 0:00:19]} 53. cxb4 {[%clk 0:00:11]}  axb4 {[%clk 0:00:19]} 54. Qd4 {[%clk 0:00:11]}  Qc8+ {[%clk 0:00:19]} 55. Kg2 {[%clk 0:00:10]}  c3 {[%clk 0:00:19]} 56. bxc3 {[%clk 0:00:09]}  bxc3 {[%clk 0:00:20]} 57. Qd1 {[%clk 0:00:09]}  Qc6+ {[%clk 0:00:20]} 58. Kf2 {[%clk 0:00:08]}  c2 {[%clk 0:00:20]} 59. Qc1 {[%clk 0:00:09]}  Qc3 {[%clk 0:00:21]} 60. Ke2 {[%clk 0:00:08]}  Kg7 {[%clk 0:00:21]} 61. a4 {[%clk 0:00:07]}  Qc4+ {[%clk 0:00:20]} 62. Kd2 {[%clk 0:00:05]}  Qxa4 {[%clk 0:00:20]} 63. Qb2+ {[%clk 0:00:06]}  Kh7 {[%clk 0:00:20]} 64. Qxc2 {[%clk 0:00:06]}  Qxc2+ {[%clk 0:00:19]} 65. Kxc2 {[%clk 0:00:07]}  Kh6 {[%clk 0:00:20]} 66. Kd2 {[%clk 0:00:08]}  Kg5 {[%clk 0:00:20]} 67. Ke3 {[%clk 0:00:08]}  Kg4 {[%clk 0:00:20]} 68. Kf2 {[%clk 0:00:09]}  h4 {[%clk 0:00:19]} 69. gxh4 {[%clk 0:00:07]}  Kxh4 {[%clk 0:00:20]} 70. Kf3 {[%clk 0:00:07]}  g5 {[%clk 0:00:17]} 71. Kf2 {[%clk 0:00:08]}  Kh3 {[%clk 0:00:16]} 72. Kg1 {[%clk 0:00:08]}  Kg3 {[%clk 0:00:16]} 73. Kf1 {[%clk 0:00:09]}  Kh2 {[%clk 0:00:16]} 74. Kf2 {[%clk 0:00:09]}  g4 {[%clk 0:00:17]} 75. Ke3 {[%clk 0:00:10]}  g3 {[%clk 0:00:18]} 0-1


[Site "https://www.chess.com"]